lending/lending_fUSD_20240207
["ID","MTS","AMOUNT","RATE_DAILY","PERIOD"]
[313441772,1707347512486,-2579.11,0.00050136,61]
[313441773,1707347512494,-500.0,0.00050136,61]
[313441774,1707347512504,-841.24,0.00050136,61]
[313441775,1707347512513,-698.88,0.00050136,61]
[313441776,1707347512522,-581.08,0.00050136,61]
[313441777,1707347512531,-500.0,0.00050136,61]
[313441778,1707347512540,-500.0,0.00050136,61]
[313441779,1707347512550,-500.0,0.00050136,61]
[313441780,1707347512558,-1787.41,0.00050136,61]
[313441781,1707347512567,-500.0,0.00050136,61]
[313441782,1707347512577,-500.0,0.00050136,61]
[313441783,1707347512586,-550.88,0.00050136,61]
[313441784,1707347512595,-2626.41,0.00050136,61]
[313441785,1707347512604,-500.0,0.00050136,61]
[313441786,1707347512613,-821.13,0.00050136,61]
[313441787,1707347512623,-1919.09,0.00050136,61]
[313441788,1707347512632,-2528.01,0.00050136,61]
[313441789,1707347512641,-500.0,0.00050136,61]
[313441790,1707347512650,-2658.82,0.00050136,61]
[313441791,1707347512659,-706.32,0.00050136,61]
[313441792,1707347512668,-500.0,0.00050136,61]
[313441793,1707347512677,-732.42,0.00050136,61]
[313441794,1707347512687,-383.70748878,0.00050136,61]
[313441795,1707347512696,-1514.38,0.00050136,61]
[313441796,1707347512705,-500.0,0.00050136,61]
[313441797,1707347512714,-500.0,0.00050136,61]
[313441798,1707347512725,-500.0,0.00050136,61]
[313441799,1707347512734,-754.94,0.00050136,61]
[313441800,1707347512744,-500.0,0.00050136,61]
[313441801,1707347512757,-500.0,0.00050136,61]
[313441802,1707347512766,-866.36,0.00050136,61]
[313441803,1707347512776,-1142.32,0.00050136,61]
[313441804,1707347512786,-500.0,0.00050136,61]
[313441805,1707347512795,-4003.88,0.00050136,61]
[313441806,1707347512805,-5577.07,0.00050136,61]
[313441807,1707347512814,-1625.48,0.00050136,61]
[313441808,1707347512823,-2753.05,0.00050136,61]
[313441809,1707347512833,-907.29,0.00050136,61]
[313441810,1707347512842,-732.93,0.00050136,61]
[313441811,1707347512851,-500.0,0.00050136,14]
[313441812,1707347512861,-546.89,0.00050136,61]
[313441813,1707347512870,-1438.85,0.00050136,61]
[313441814,1707347512879,-10509.26,0.00050136,61]
[313441815,1707347512888,-500.0,0.00050136,61]
[313441816,1707347512897,-1733.98941929,0.00050137,14]
[313441817,1707347512906,-802.94827469,0.00050137,14]
[313441818,1707347512915,-1177.17431784,0.00050137,14]
[313441819,1707347512924,-1417.8631835,0.00050137,14]
[313441820,1707347512934,-1222.99045245,0.00050137,14]
[313441821,1707347512944,-172.70752235,0.00050138,60]
[313441822,1707347512953,-209.00562503,0.00050141,60]
[313441823,1707347512962,-153.55779557,0.00050151,60]
[313441824,1707347512971,-209.00562503,0.00050153,60]
[313441825,1707347512980,-250.0,0.0005017,7]
[313441826,1707347512989,-153.16703045,0.00050176,45]
[313441827,1707347512998,-155.14199561,0.00050188,60]
[313441828,1707347513009,-472.0,0.0005019,2]
[313441829,1707347513020,-163.97,0.00050192,2]
[313441830,1707347513029,-209.00562503,0.00050197,60]
[313441831,1707347513038,-153.55779557,0.00050199,60]
[313441832,1707347513047,-971.07141385,0.000502,120]
[313441833,1707347513058,-971.07141385,0.000502,120]
[313441834,1707347513067,-971.07141385,0.000502,120]
[313441835,1707347513077,-971.07141385,0.000502,120]
[313441836,1707347513088,-971.07141385,0.000502,120]
[313441837,1707347513097,-971.07141385,0.000502,120]
[313441838,1707347513106,-971.07141385,0.000502,120]
[313441839,1707347513115,-971.07141385,0.000502,120]
[313441840,1707347513124,-971.07141385,0.000502,120]
[313441841,1707347513133,-971.07141385,0.000502,120]
[313441842,1707347513142,-971.07141385,0.000502,120]
[313441843,1707347513151,-971.07141385,0.000502,120]
[313441844,1707347513160,-971.07141385,0.000502,120]
[313441845,1707347513169,-971.07141385,0.000502,120]
[313441846,1707347513178,-971.07141385,0.000502,120]
[313441847,1707347513188,-971.07141385,0.000502,120]
[313441848,1707347513198,-8779.13328641,0.000502,2]
[313441849,1707347513207,-284110.09901919,0.000502,30]
[313441850,1707347513243,-161.83709875,0.00049746,11]
[313441851,1707347513253,-999.7592673,0.000502,30]
[313441852,1707347513273,-2744.42430717,0.000502,30]
[313441853,1707347513286,-495577.71740634,0.000502,30]
[313441854,1707347513295,-156.81965112,0.00050204,60]
[313441855,1707347513305,-153.55779557,0.00050207,60]
[313441856,1707347513315,-318.86752805,0.00050209,60]
[313441857,1707347513325,-5532.10393448,0.00050218,30]
[313441858,1707347513342,-1256.79,0.00049863,2]
[313441859,1707347513351,-31696.89606552,0.00050218,30]
[313441860,1707347513361,-207.2732167,0.00050219,120]
[313441861,1707347513370,-318.86752805,0.00050235,60]
[313441862,1707347513380,-153.55779557,0.00050237,60]
[313441863,1707347513389,-153.55779557,0.00050245,60]
[313441864,1707347513398,-209.00562503,0.00050245,60]
[313441865,1707347513408,-153.55779557,0.00050249,60]
[313441866,1707347513417,-44407.60664071,0.0005025,120]
[313441867,1707347513436,-279.603,0.0005025,120]
[313441868,1707347513448,-311.63,0.0005025,120]
[313441869,1707347514573,-200.05,0.0004721,2]
[313441870,1707347514583,-160.395624,0.00049041,14]
[313441871,1707347514592,-637.85013377,0.00049081,2]
[313441872,1707347514602,-4951.735395,0.00049281,14]
[313441873,1707347514611,-500.0,0.00049315,61]
[313441874,1707347514621,-1390.1,0.00049315,61]
[313441875,1707347514631,-1244.4,0.00049315,61]
[313441876,1707347514641,-500.0,0.00049315,61]
[313441877,1707347514653,-500.0,0.00049589,61]
[313441878,1707347514662,-1390.1,0.00049589,61]
[313441879,1707347514671,-1244.4,0.00049589,61]
[313441880,1707347514681,-500.0,0.00049863,61]
[313441881,1707347514689,-1390.1,0.00049863,61]
[313441882,1707347514699,-1244.4,0.00049863,61]
[313441883,1707347514707,-160.395624,0.00049863,30]
[313441884,1707347514717,-390.69,0.00050136,61]
[313441885,1707347514726,-1390.1,0.00050136,61]
[313441886,1707347514735,-1244.4,0.00050136,61]
[313441887,1707347514744,-120997.83514107,0.0005025,120]
[313441888,1707347514772,-500.0,0.00049589,61]
[313441889,1707347514781,-59025.81364014,0.0005025,120]
[313441890,1707347514801,-0.12312301,0.0005025,120]
[313441891,1707347514886,-4951.735395,0.00049306,14]
[313441892,1707347514898,-5623.18480307,0.0005025,120]
[313441893,1707347514968,-1055.63897072,0.0005025,120]
[313441894,1707347515344,-185.09,0.00049863,61]
[313441895,1707347515353,-52145.39668309,0.0005025,120]
[313441896,1707347546905,286.0,0.00023549,3]
[313441897,1707347659902,1061.5412965,0.00023549,2]
[313441898,1707347697230,152.42,0.00021631,2]
[313441906,1707348419147,-639.80038613,0.00023432,2]
[313441907,1707348419170,-421.66101138,0.00023432,2]
[313441908,1707348419195,-624.47827918,0.00023433,2]
[313441909,1707348419215,-733.20780865,0.00023434,2]
[313441910,1707348419236,-156.64413708,0.00023435,2]
[313441911,1707348419259,-562.89466522,0.00023533,2]
[313441912,1707348419279,-6063.82012075,0.00023546,2]
[313441913,1707348419299,-150.0,0.00023548,2]
[313441914,1707348419321,-168.82,0.00023549,2]
[313441915,1707348419342,-4939.57,0.00023549,2]
[313441916,1707348419362,-200.0,0.00023549,2]
[313441917,1707348419382,-2000.0,0.00023549,2]
[313441918,1707348419402,-250.0,0.00023549,2]
[313441919,1707348419423,-250.0,0.00023549,2]
[313441920,1707348420643,3042.27969903,0.00023431,2]
[313441921,1707348422085,150.0,0.00023548,2]
[313441923,1707348438420,-250.0,0.00024658,2]
[313441924,1707348438439,-238.27,0.00024658,4]
[313441925,1707348438459,-350.0,0.00025,3]
[313441926,1707348438479,-400.0,0.00027,3]
[313441927,1707348438498,-309.27,0.000288,2]
[313441928,1707348438516,-3943.24,0.000288,2]
[313441929,1707348438535,-865.83,0.000288,2]
[313441930,1707348438554,-7726.92,0.000288,2]
[313441931,1707348438573,-450.0,0.00029,3]
[313441932,1707348438591,-616.59,0.00030999,20]
[313441933,1707348438611,-500.0,0.00031,3]
[313441934,1707348438632,-123.44492218,0.00033,3]
[313441935,1707348440092,-426.55507782,0.00033,3]
[313441936,1707348440116,-504.74,0.000338,2]
[313441937,1707348440138,-504.74,0.000338,2]
[313441938,1707348440159,-504.74,0.000338,2]
[313441939,1707348440180,-504.74,0.000338,2]
[313441940,1707348440201,-504.74,0.000338,2]
[313441941,1707348440222,-504.74,0.000338,2]
[313441942,1707348440243,-504.74,0.000338,2]
[313441943,1707348440265,-504.74,0.000338,2]
[313441944,1707348440285,-504.74,0.000338,2]
[313441945,1707348440306,-504.74,0.000338,2]
[313441946,1707348440328,-504.74,0.000338,2]
[313441947,1707348440350,-504.74,0.000338,2]
[313441948,1707348440372,-504.74,0.000338,2]
[313441949,1707348440394,-504.74,0.000338,2]
[313441950,1707348440417,-504.74,0.000338,2]
[313441951,1707348440439,-504.74,0.000338,2]
[313441952,1707348440461,-504.74,0.000338,2]
[313441953,1707348440482,-504.74,0.000338,2]
[313441954,1707348440502,-504.74,0.000338,2]
[313441955,1707348440523,-504.74,0.000338,2]
[313441956,1707348440543,-425.01970771,0.00034796,4]
[313441957,1707348441126,497.79,0.00023549,2]
[313441959,1707348457457,212.58,0.00023549,2]
[313441960,1707348460029,23900.0,0.00023549,2]
[313441964,1707348491839,983.59,0.00023549,2]
[313441968,1707348567088,-497.79,0.00032969,2]
[313441969,1707348567107,-507.41922402,0.00034796,4]
[313441970,1707348567129,-1161.37451739,0.00034857,10]
[313441971,1707348567149,-175.65789576,0.00034857,10]
[313441972,1707348567170,-2508.13737778,0.00034896,7]
[313441973,1707348567190,-600.0,0.00035,3]
[313441974,1707348567209,-650.0,0.00037,3]
[313441975,1707348567227,-5779.0,0.000371,2]
[313441976,1707348567246,-151.8,0.00038356,2]
[313441977,1707348567264,-985.11605769,0.00038999,4]
[313441978,1707348567283,-700.0,0.00039,3]
[313441979,1707348567304,-162.0,0.00039794,2]
[313441980,1707348567322,-864.3296203,0.00040998,4]
[313441981,1707348567341,-750.0,0.00041,3]
[313441982,1707348567361,-256.52,0.00041639,2]
[313441983,1707348567381,-504.74,0.000419,4]
[313441984,1707348567401,-504.74,0.000419,4]
[313441985,1707348567421,-504.74,0.000419,4]
[313441986,1707348567440,-504.74,0.000419,4]
[313441987,1707348567460,-504.74,0.000419,4]
[313441988,1707348567479,-504.74,0.000419,4]
[313441989,1707348567499,-504.74,0.000419,4]
[313441990,1707348567519,-504.74,0.000419,4]
[313441991,1707348567539,-504.74,0.000419,4]
[313441992,1707348567558,-504.74,0.000419,4]
[313441993,1707348567578,-504.74,0.000419,4]
[313441994,1707348567597,-2705.0,0.00042353,120]
[313441995,1707348567616,-166.09,0.00042386,2]
[313441996,1707348567634,-647.46412497,0.00042999,4]
[313441997,1707348567653,-800.0,0.00043,3]
[313441998,1707348567671,-162.0,0.00043044,2]
[313441999,1707348567689,-190.0,0.000434,7]
[313442000,1707348567708,-150.8,0.00043446,2]
[313442001,1707348567726,-150.0,0.0004355,2]
[313442002,1707348567745,-183.54,0.00043638,2]
[313442003,1707348567763,-704.18,0.00043836,15]
[313442004,1707348567783,-256.52,0.00043903,2]
[313442005,1707348567801,-190.0,0.000442,7]
[313442006,1707348568135,3202.7522745,0.00032968,2]
[313442007,1707348570409,958.89179145,0.00042998,2]
[313442008,1707348570854,343.31,0.000338,2]
[313442009,1707348570975,343.31,0.000338,2]
[313442010,1707348571055,343.31,0.000338,2]
[313442011,1707348571095,343.31,0.000338,2]
[313442012,1707348571130,343.31,0.000338,2]
[313442013,1707348571171,343.31,0.000338,2]
[313442014,1707348571217,343.31,0.000338,2]
[313442015,1707348571264,343.31,0.000338,2]
[313442016,1707348571307,343.31,0.000338,2]
[313442017,1707348571347,343.31,0.000338,2]
[313442018,1707348571386,343.31,0.000338,2]
[313442019,1707348571437,343.31,0.000338,2]
[313442020,1707348571478,343.31,0.000338,2]
[313442021,1707348571536,343.31,0.000338,2]
[313442022,1707348571593,343.31,0.000338,2]
[313442023,1707348571655,343.31,0.000338,2]
[313442024,1707348571747,343.31,0.000338,2]
[313442025,1707348571789,343.31,0.000338,2]
[313442026,1707348571855,343.31,0.000338,2]
[313442027,1707348571911,343.31,0.000338,2]
[313442028,1707348571957,343.31,0.000379,3]
[313442029,1707348572016,343.31,0.000379,3]
[313442030,1707348572077,343.31,0.000379,3]
[313442031,1707348572142,90.49656272,0.000379,3]
[313442034,1707348614604,306.64,0.00023549,2]
[313442035,1707348614625,2398.36,0.00023549,2]
[313442043,1707348632091,-252.81343728,0.000379,3]
[313442044,1707348632102,-343.31,0.000379,3]
[313442045,1707348632112,-82.26122565,0.000379,3]
[313442046,1707348632134,-261.04877435,0.000379,3]
[313442047,1707348632143,-54.01342779,0.000379,3]
[313442048,1707348632155,-289.29657221,0.000379,3]
[313442049,1707348632164,-343.31,0.000379,3]
[313442050,1707348632174,-343.31,0.000379,3]
[313442051,1707348632183,-86.05193951,0.000379,3]
[313442052,1707348632207,-257.25806049,0.000379,3]
[313442053,1707348632217,-343.31,0.000379,3]
[313442054,1707348632226,-99.54993694,0.000379,3]
[313442055,1707348632261,-243.76006306,0.000379,3]
[313442056,1707348632271,-343.31,0.000379,3]
[313442057,1707348632279,-343.31,0.000379,3]
[313442058,1707348632289,-343.31,0.000379,3]
[313442059,1707348632298,-343.31,0.000379,3]
[313442060,1707348632310,-343.31,0.000379,3]
[313442061,1707348632319,-343.31,0.000379,3]
[313442062,1707348632329,-343.31,0.000379,3]
[313442063,1707348632338,-343.31,0.000379,3]
[313442064,1707348632348,-200.05,0.0003926,2]
[313442065,1707348632357,-343.31,0.000419,4]
[313442066,1707348632367,-343.31,0.000419,4]
[313442067,1707348632376,-343.31,0.000419,4]
[313442068,1707348632386,-343.31,0.000419,4]
[313442069,1707348632395,-343.31,0.000419,4]
[313442070,1707348632405,-343.31,0.000419,4]
[313442071,1707348632415,-343.31,0.000419,4]
[313442072,1707348632425,-343.31,0.000419,4]
[313442073,1707348632435,-343.31,0.000419,4]
[313442075,1707348632444,-343.31,0.000419,4]
[313442077,1707348632454,-343.31,0.000419,4]
[313442079,1707348632463,-343.31,0.000419,4]
[313442080,1707348632473,-343.31,0.000419,4]
[313442081,1707348632483,-343.31,0.000419,4]
[313442082,1707348632492,-343.31,0.000419,4]
[313442083,1707348632502,-343.31,0.000419,4]
[313442084,1707348632511,-343.31,0.000419,4]
[313442085,1707348632520,-343.31,0.000419,4]
[313442086,1707348632530,-343.31,0.000419,4]
[313442087,1707348632539,-343.31,0.000419,4]
[313442088,1707348632548,-1273.24056602,0.00041907,4]
[313442089,1707348632557,-982.41901901,0.00043878,4]
[313442090,1707348632567,-725.10165414,0.00043879,4]
[313442091,1707348632576,-155.0,0.0004438,4]
[313442092,1707348632586,-155.0,0.00044384,4]
[313442093,1707348632595,-155.0,0.00044549,30]
[313442094,1707348632604,-254.29951678,0.00045,7]
[313442095,1707348632614,-850.0,0.00045,3]
[313442096,1707348632624,-190.0,0.00045,7]
[313442097,1707348632633,-450.0,0.00045,14]
[313442098,1707348632642,-428.87,0.00045311,2]
[313442099,1707348632651,-190.0,0.000459,30]
[313442100,1707348632661,-343.31,0.000459,5]
[313442101,1707348632671,-343.31,0.000459,5]
[313442102,1707348632680,-343.31,0.000459,5]
[313442103,1707348632690,-343.31,0.000459,5]
[313442104,1707348632700,-343.31,0.000459,5]
[313442105,1707348632710,-343.31,0.000459,5]
[313442106,1707348632719,-343.31,0.000459,5]
[313442107,1707348632729,-343.31,0.000459,5]
[313442108,1707348632739,-343.31,0.000459,5]
[313442109,1707348632748,-343.31,0.000459,5]
[313442110,1707348632758,-343.31,0.000459,5]
[313442111,1707348632767,-343.31,0.000459,5]
[313442112,1707348632776,-343.31,0.000459,5]
[313442113,1707348632785,-343.31,0.000459,5]
[313442114,1707348632795,-343.31,0.000459,5]
[313442115,1707348632804,-343.31,0.000459,5]
[313442116,1707348632813,-343.31,0.000459,5]
[313442117,1707348632825,-343.31,0.000459,5]
[313442118,1707348632835,-343.31,0.000459,5]
[313442119,1707348632845,-343.31,0.000459,5]
[313442120,1707348632856,-1000.0,0.00046,2]
[313442121,1707348632865,-1257.32363999,0.00046163,30]
[313442122,1707348632875,-256.52,0.00046167,2]
[313442123,1707348632884,-162.0,0.00046294,2]
[313442124,1707348632893,-600.0,0.00046575,61]
[313442125,1707348632902,-190.0,0.000467,30]
[313442126,1707348632911,-1317.7281,0.00046846,2]
[313442127,1707348632920,-600.0,0.00046849,61]
[313442128,1707348632930,-5464.34731377,0.00046946,4]
[313442129,1707348632939,-5000.0,0.00047,30]
[313442130,1707348632948,-900.0,0.00047,3]
[313442131,1707348632957,-600.0,0.00047123,61]
[313442132,1707348632966,-200.0,0.0004714,10]
[313442133,1707348632975,-331.9500507,0.00047209,4]
[313442134,1707348632985,-661.49924278,0.0004733,2]
[313442135,1707348632995,-647.46412497,0.0004733,4]
[313442136,1707348633005,-958.89179145,0.0004733,2]
[313442137,1707348633016,-600.0,0.00047397,61]
[313442138,1707348633026,-190.0,0.000475,30]
[313442139,1707348633035,-1076.14,0.00047542,2]
[313442140,1707348633045,-704.18,0.00047572,15]
[313442141,1707348633055,-600.0,0.00047671,61]
[313442142,1707348633064,-2485.7643119,0.00047824,4]
[313442143,1707348633073,-600.0,0.00047945,61]
[313442144,1707348633082,-169.0,0.00048,90]
[313442145,1707348633092,-600.0,0.00048219,61]
[313442146,1707348633101,-205.0,0.00048225,10]
[313442147,1707348633110,-962.14280511,0.00048299,4]
[313442148,1707348633119,-190.0,0.000483,30]
[313442149,1707348633128,-256.52,0.00048431,2]
[313442150,1707348633138,-600.0,0.00048493,61]
[313442151,1707348633147,-1254.0,0.000487,117]
[313442152,1707348633157,-600.0,0.00048767,61]
[313442153,1707348633166,-1000.0,0.000488,2]
[313442154,1707348633175,-300.0,0.000488,17]
[313442155,1707348633184,-150.8,0.00048877,2]
[313442156,1707348633193,-600.0,0.000489,17]
[313442157,1707348633203,-1000.0,0.00048909,2]
[313442158,1707348633212,-1481.2503,0.00048957,2]
[313442159,1707348633221,-950.0,0.00049,3]
[313442160,1707348633230,-600.0,0.00049041,61]
[313442161,1707348633239,-2000.0,0.00049089,4]
[313442162,1707348633248,-2881.626208,0.000491,55]
[313442163,1707348633257,-218.737605,0.000491,23]
[313442164,1707348633267,-250.81373778,0.0004918,30]
[313442165,1707348633276,-1000.0,0.0004918,30]
[313442166,1707348633285,-10000.0,0.0004919,120]
[313442167,1707348633294,-190.0,0.000492,30]
[313442168,1707348633304,-1000000.0,0.000492,30]
[313442169,1707348633317,-161.83709875,0.00049205,10]
[313442170,1707348633327,-534.13363385,0.0004921,4]
[313442171,1707348633336,-1186.45035852,0.00049211,21]
[313442172,1707348633345,-184.86326053,0.00049211,14]
[313442173,1707348633356,-637.85013377,0.00049213,2]
[313442174,1707348633366,-798.96148721,0.00049215,5]
[313442175,1707348633376,-153.16703045,0.00049215,41]
[313442176,1707348633386,-389.05430318,0.00049215,2]
[313442177,1707348633395,-257.0207392,0.00049215,2]
[313442178,1707348633404,-10608.4635491,0.00049215,2]
[313442179,1707348633414,-5000.0,0.00049215,7]
[313442180,1707348633423,-1000000.0,0.0004922,30]
[313442181,1707348633432,-2227.89335498,0.0004925,30]
[313442182,1707348633445,-6438.849502,0.0004925,30]
[313442183,1707348633457,-943.88556445,0.0004925,30]
[313442184,1707348633487,-1099.63523633,0.0004925,30]
[313442185,1707348633498,-3888.23659935,0.0004925,30]
[313442186,1707348633511,-343.666,0.0004925,30]
[313442187,1707348633532,-366.42977514,0.0004925,30]
[313442188,1707348633711,1225.55906871,0.00023549,2]
[313442189,1707348633731,774.44093129,0.00023549,2]
[313442190,1707348638085,-208.0,0.00048225,10]
[313442191,1707348638095,-1512.9146,0.00049205,2]
[313442192,1707348638104,-2000.0,0.00049215,4]
[313442193,1707348638114,-1304.33886918,0.0004925,30]
[313442194,1707348638126,-4982.50221629,0.0004925,30]
[313442195,1707348638137,-419.89831275,0.0004925,30]
[313442196,1707348638194,-488.75743333,0.0004925,30]
[313442197,1707348638207,-9675.16620798,0.0004925,30]
[313442198,1707348638249,-22416.11219789,0.0004925,30]
[313442199,1707348638261,-44142.19411603,0.0004925,30]
[313442200,1707348638273,-1909.80972891,0.0004925,30]
[313442201,1707348638284,-3014.9475617,0.0004925,30]
[313442202,1707348638301,-6339.08062364,0.0004925,30]
[313442205,1707348638320,-694.270008,0.0004925,30]
[313442210,1707348638358,-1086.93189934,0.0004925,30]
[313442456,1707348640818,-150.0,0.00048411,2]
[313442457,1707348640827,-228.20715597,0.0004925,30]
[313442458,1707348640851,-424.56160065,0.0004925,30]
[313442459,1707348640879,-1489.433276,0.0004925,30]
[313442460,1707348640908,-2936.32,0.0004925,30]
[313442461,1707348641362,-572.54127002,0.0004925,30]
[313442466,1707348641501,-652.6878165,0.0004925,30]
[313442467,1707348641545,-4423.3,0.0004925,30]
[313442480,1707348643063,-260.59525954,0.0003,4]
[313442482,1707348643073,-204.66323388,0.00036977,4]
[313442484,1707348643082,-211714.43601738,0.0004925,30]
[313442486,1707348643094,-405015.90765619,0.0004925,30]
[313442487,1707348643103,-200.0,0.00049283,20]
[313442489,1707348643113,-438.0,0.0004929,2]
[313442491,1707348643122,-155.67816992,0.00049295,2]
[313442493,1707348643131,-24336.39093089,0.00049302,2]
[313442494,1707348643140,-4264.0226117,0.00049303,2]
[313442496,1707348643150,-504.03645429,0.00049303,4]
[313442498,1707348643159,-3039.94323939,0.00049303,4]
[313442500,1707348643168,-63476.35164233,0.00049304,120]
[313442502,1707348643178,-500.0,0.00049304,120]
[313442503,1707348643186,-500.0,0.00049304,120]
[313442505,1707348643195,-464.09684441,0.00049304,120]
[313442507,1707348643204,-7816.05560032,0.00049304,4]
[313442508,1707348643213,-4506.31056487,0.00049304,4]
[313442510,1707348643222,-334637.8807909,0.00049305,11]
[313442519,1707348644050,-254855.1414771,0.00049305,11]
[313442520,1707348644059,-249.72606267,0.00049311,4]
[313442521,1707348644068,-191.59775398,0.00049311,4]
[313442522,1707348644077,-544.90427787,0.00049311,4]
[313442523,1707348644086,-263.2016294,0.00049311,4]
[313442524,1707348644095,-172.54144566,0.00049311,4]
[313442525,1707348644104,-155.0,0.00049311,4]
[313442526,1707348644113,-156.45469851,0.00049311,4]
[313442527,1707348644122,-16596.48836932,0.00049312,5]
[313442528,1707348644131,-180.8638023,0.00049313,2]
[313442529,1707348644140,-155.0,0.00049313,2]
[313442530,1707348644149,-1064.87093628,0.00049313,4]
[313442531,1707348644158,-1206.07880457,0.00049313,4]
[313442532,1707348644168,-698.29129307,0.00049313,30]
[313442533,1707348644178,-232.48962599,0.00049313,4]
[313442534,1707348644186,-2143.62450616,0.00049313,4]
[313442535,1707348644198,-162.10429849,0.00049313,4]
[313442536,1707348644207,-51219.43675686,0.00049313,2]
[313442537,1707348644216,-155.24461793,0.00049313,4]
[313442538,1707348644225,-364.82931243,0.00049313,4]
[313442539,1707348644234,-375.18085056,0.00049314,4]
[313442540,1707348644243,-500.0,0.00049315,30]
[313442541,1707348644252,-456.29162172,0.00049315,61]
[313442542,1707348644265,-43.70837828,0.00049315,61]
[313442543,1707348644274,-222.847383,0.00049315,61]
[313442544,1707348644283,-167.60633698,0.00049315,61]
[313442545,1707348644292,-500.0,0.00049315,61]
[313442546,1707348644301,-500.0,0.00049315,61]
[313442547,1707348644311,-531.60589961,0.00049315,61]
[313442548,1707348644323,-491.3282515,0.00049315,61]
[313442549,1707348644337,-8.6717485,0.00049315,61]
[313442550,1707348644346,-500.0,0.00049315,61]
[313442551,1707348644355,-500.0,0.00049315,61]
[313442552,1707348644363,-500.0,0.00049315,61]
[313442553,1707348644372,-513.0640488,0.00049315,61]
[313442554,1707348644381,-500.0,0.00049315,61]
[313442555,1707348644391,-500.0,0.00049315,61]
[313442556,1707348644401,-500.0,0.00049315,61]
[313442557,1707348644410,-200.0,0.00049315,61]
[313442558,1707348644420,-500.0,0.00049315,61]
[313442559,1707348644429,-500.0,0.00049315,61]
[313442560,1707348644438,-500.0,0.00049315,61]
[313442561,1707348644447,-500.0,0.00049315,61]
[313442562,1707348644456,-500.0,0.00049315,61]
[313442563,1707348644466,-500.0,0.00049315,61]
[313442564,1707348644475,-500.0,0.00049315,61]
[313442565,1707348644484,-199.89797291,0.00049315,14]
[313442566,1707348644494,-500.0,0.00049315,61]
[313442567,1707348644502,-500.0,0.00049315,61]
[313442568,1707348644512,-500.0,0.00049315,61]
[313442569,1707348644521,-582.44,0.00049315,61]
[313442570,1707348644531,-500.0,0.00049315,61]
[313442571,1707348644541,-500.0,0.00049315,61]
[313442572,1707348644550,-500.0,0.00049315,61]
[313442573,1707348644559,-500.0,0.00049315,61]
[313442574,1707348644568,-500.0,0.00049315,61]
[313442575,1707348644577,-500.0,0.00049315,61]
[313442576,1707348644587,-601.76548069,0.00049315,61]
[313442577,1707348644596,-500.0,0.00049315,61]
[313442578,1707348644606,-500.0,0.00049315,61]
[313442579,1707348644616,-509.40168104,0.00049315,61]
[313442580,1707348644625,-630.16305266,0.00049315,61]
[313442581,1707348644635,-500.0,0.00049315,61]
[313442582,1707348644644,-500.0,0.00049315,61]
[313442583,1707348644653,-500.0,0.00049315,61]
[313442584,1707348644662,-500.0,0.00049315,61]
[313442585,1707348644672,-500.0,0.00049315,61]
[313442586,1707348644681,-500.0,0.00049315,61]